bitfinex-derivatives/quotes_SOLF0:USTF0_20260315
["timestamp","ask_amount","ask_price","bid_price","bid_amount"]
[1773552195106,15.79961128,88.507,88.461,5.66040388]
[1773552195305,5.63261128,88.506,88.461,5.66040388]
[1773552196511,5.63261128,88.504,88.461,5.66040388]
[1773552197614,5.63261128,88.5,88.46,3.06606705]
[1773552197816,5.63261128,88.5,88.451,5.66040388]
[1773552198013,5.63261128,88.5,88.46,8.72647093]
[1773552198213,5.63261128,88.498,88.448,5.66040388]
[1773552198414,5.63261128,88.498,88.45,3.06606705]
[1773552199518,5.63261128,88.492,88.45,3.06606705]
[1773552200816,5.63261128,88.49,88.44,3.06606705]
[1773552201016,5.63261128,88.489,88.431,5.66040388]
[1773552201319,5.63261128,88.509,88.451,5.66040388]
[1773552201517,5.63261128,88.509,88.46,3.06606705]
[1773552201719,6.32321113,88.507,88.461,6.03306456]
[1773552202519,10.167,88.505,88.461,6.03306456]
[1773552202819,16.49021113,88.505,88.461,6.03306456]
[1773552203020,6.32321113,88.5,88.461,6.03306456]
[1773552204520,10.168,88.499,88.461,6.03306456]
[1773552204818,6.32321113,88.498,88.461,6.03306456]
[1773552206421,10.168,88.495,88.461,6.03306456]
[1773552206621,6.32321113,88.494,88.45,6.03306456]
[1773552207722,6.32321113,88.494,88.451,6.03306456]
[1773552207918,6.32321113,88.494,88.421,20.19612876]
[1773552207919,6.32321113,88.524,88.461,1.03523142]
[1773552208123,6.32321113,88.524,88.471,1.03523142]
[1773552209224,3.06606705,88.52,88.471,1.03523142]
[1773552209424,6.32321113,88.511,88.46,3.06606705]
[1773552209625,6.32321113,88.511,88.459,1.07553488]
[1773552210330,6.32321113,88.511,88.461,1.10905488]
[1773552210531,16.49021113,88.509,88.461,1.10905488]
[1773552211328,6.32321113,88.508,88.461,1.10905488]
[1773552212828,6.32321113,88.505,88.461,1.10905488]
[1773552213628,16.49021113,88.503,88.461,1.10905488]
[1773552213837,6.32321113,88.489,88.432,1.20572111]
[1773552214335,6.32321113,88.474,88.432,1.20572111]
[1773552214636,3.06606705,88.47,88.421,1.20488826]
[1773552214837,6.32321113,88.469,88.421,1.20488826]
[1773552216633,6.32321113,88.469,88.423,1.29085336]
[1773552227150,6.32321113,88.469,88.413,10.177]
[1773552227849,6.32321113,88.469,88.413,10.98280647]
[1773552228241,6.32321113,88.469,88.416,10.98280647]
[1773552228646,6.32321113,88.469,88.417,0.8310237]
[1773552229546,6.32321113,88.469,88.419,0.83943915]
[1773552230246,6.32321113,88.469,88.42,3.06579989]
[1773552230853,6.32321113,88.469,88.418,10.177]
[1773552230854,6.73232654,88.491,88.441,0.8727096]
[1773552233555,6.73232654,88.491,88.442,10.174]
[1773552234355,3.06579989,88.49,88.442,10.174]
[1773552234656,6.62344439,88.489,88.442,10.174]
[1773552237155,6.62344439,88.489,88.443,1.17678526]
[1773552241356,6.62344439,88.489,88.445,1.28888596]
[1773552241560,35.58,88.509,88.375,177.0]
[1773552241561,6.62261755,88.508,88.46,4.37732138]
[1773552241856,6.62261755,88.508,88.461,1.31152149]
[1773552242053,6.62261755,88.508,88.46,3.06579989]
[1773552242054,6.62261755,88.508,88.471,1.31152149]
[1773552243563,6.62261755,88.508,88.473,10.17]
[1773552251663,6.62261755,88.508,88.438,1.24545098]
[1773552251859,6.62261755,88.508,88.471,1.24545098]
[1773552252463,6.62261755,88.508,88.418,27.89585614]
[1773552252464,6.98975119,88.526,88.491,0.78984523]
[1773552256266,7.08015137,88.553,88.52,3.06579989]
[1773552256467,7.08015137,88.553,88.5,3.06579989]
[1773552256669,35.58,88.598,88.5,3.06579989]
[1773552256670,7.08047865,88.549,88.5,3.06579989]
[1773552256869,7.08047865,88.549,88.503,10.167]
[1773552258472,7.08047865,88.549,88.5,3.06579989]
[1773552260678,6.94683612,88.537,88.474,10.17]
[1773552260875,6.94683612,88.529,88.474,10.17]
[1773552261067,6.94683612,88.529,88.475,1.04689878]
[1773552261466,6.94683612,88.529,88.481,1.02195132]
[1773552263072,8.32727848,88.597,88.441,55.77612876]
[1773552263073,7.08872518,88.544,88.501,0.89997856]
[1773552266176,7.08872518,88.544,88.51,3.06579989]
[1773552266381,7.08872518,88.569,88.51,4.03065286]
[1773552266575,7.08872518,88.569,88.526,11.14488204]
[1773552266782,7.08872518,88.569,88.457,20.345]
[1773552266783,7.08872518,88.58,88.54,3.06579989]
[1773552267284,7.08872518,88.58,88.531,0.98088204]
[1773552268076,7.08872518,88.569,88.51,3.06579989]
[1773552268379,7.08872518,88.569,88.456,33.93]
[1773552268380,7.08872518,88.559,88.5,3.06579989]
[1773552268580,7.08872518,88.549,88.491,1.12796866]
[1773552268781,7.08872518,88.549,88.51,3.06579989]
[1773552269176,7.08872518,88.549,88.5,3.06579989]
[1773552270681,7.08872518,88.549,88.5,13.23279989]
[1773552271378,7.08872518,88.549,88.51,3.06579989]
[1773552271880,7.08872518,88.549,88.503,1.21966912]
[1773552272080,7.08872518,88.549,88.504,10.167]
[1773552272281,7.08872518,88.549,88.51,3.06579989]
[1773552273682,7.08872518,88.549,88.511,10.166]
[1773552274581,7.08872518,88.562,88.515,10.166]
[1773552275879,7.08872518,88.562,88.523,10.165]
[1773552276086,7.08872518,88.562,88.52,3.06579989]
[1773552277278,7.08872518,88.562,88.512,11.42800237]
[1773552278290,7.08872518,88.562,88.52,3.06579989]
[1773552279787,7.08872518,88.562,88.521,10.165]
[1773552279988,7.08872518,88.562,88.53,3.06579989]
[1773552281681,7.08872518,88.562,88.53,3.05887252]
[1773552283891,7.08872518,88.562,88.522,1.38428858]
[1773552283892,7.08872518,88.562,88.51,3.81037035]
[1773552286791,7.23412023,88.559,88.51,3.81037035]
[1773552287487,7.23412023,88.559,88.51,3.05887252]
[1773552288692,7.23412023,88.559,88.511,11.0987047]
[1773552290586,7.23412023,88.559,88.52,3.05887252]
[1773552294295,7.23412023,88.559,88.514,10.166]
[1773552294693,7.23412023,88.559,88.52,3.05887252]
[1773552294890,7.23412023,88.559,88.485,20.19612876]
[1773552295095,157.878,88.663,88.36,158.418]
[1773552295096,7.21190096,88.539,88.49,3.05887252]
[1773552295596,7.21190096,88.539,88.481,4.08440688]
[1773552296492,7.21190096,88.539,88.487,10.169]
[1773552296901,7.21190096,88.539,88.481,4.08440688]
[1773552297091,7.21190096,88.539,88.468,20.19612876]
[1773552297092,7.21190096,88.539,88.491,4.116263]
[1773552299795,7.21190096,88.539,88.48,3.05887252]
[1773552299994,7.21190096,88.529,88.48,3.05887252]
[1773552300391,7.21190096,88.529,88.47,3.05887252]
[1773552300592,3.05887252,88.52,88.47,3.05887252]
[1773552300801,7.21190096,88.519,88.47,3.05887252]
[1773552300996,7.21190096,88.519,88.472,4.08288898]
[1773552302492,7.21190096,88.519,88.477,10.17]
[1773552304402,7.21190096,88.519,88.481,10.17]
[1773552304598,7.21190096,88.519,88.452,20.19612876]
[1773552304599,7.21190096,88.539,88.49,3.05887252]
[1773552306511,7.21190096,88.539,88.492,10.168]
[1773552307806,7.21190096,88.539,88.49,3.05887252]
[1773552308507,7.21190096,88.536,88.482,4.20070753]
[1773552309303,7.21190096,88.536,88.48,3.05887252]
[1773552309503,10.163,88.535,88.48,3.05887252]
[1773552309806,7.21190096,88.534,88.48,3.05887252]
[1773552313511,7.21190096,88.534,88.48,13.22887252]
[1773552314214,7.21190096,88.531,88.48,13.22887252]
[1773552317520,7.21190096,88.531,88.48,17.20576043]
[1773552319721,7.21190096,88.525,88.48,7.03576043]
[1773552321221,7.21190096,88.522,88.47,3.05887252]
[1773552324017,7.21190096,88.522,88.472,3.9510192]
[1773552325516,7.21190096,88.522,88.475,3.95275405]
[1773552327329,7.21190096,88.522,88.48,3.05887252]
[1773552328527,7.21190096,88.522,88.475,3.95275405]
[1773552333623,10.165,88.521,88.475,3.95275405]
[1773552333828,7.38959811,88.519,88.464,3.9018023]
[1773552334028,3.05887252,88.51,88.452,3.9018023]
[1773552334228,7.38959811,88.509,88.452,3.9018023]
[1773552334532,7.38959811,88.509,88.465,10.171]
[1773552334731,7.38959811,88.509,88.471,3.90318694]
[1773552337533,7.38959811,88.509,88.472,14.17438126]
[1773552337731,7.38959811,88.525,88.481,4.00585956]
[1773552340933,7.38959811,88.523,88.468,3.92616088]
[1773552342735,7.38959811,88.521,88.468,3.92616088]
[1773552342935,7.38959811,88.519,88.458,3.63811031]
[1773552343728,7.38959811,88.511,88.458,3.63811031]
[1773552345040,7.38959811,88.509,88.458,3.63811031]
[1773552345335,3.06288074,88.5,88.447,3.63730202]
[1773552345534,7.38959811,88.499,88.447,3.63730202]
[1773552346639,7.38959811,88.499,88.449,3.63757342]
[1773552347741,7.38959811,88.499,88.455,3.62357312]
[1773552354845,7.38959811,88.499,88.46,3.06288074]
[1773552357547,7.38959811,88.499,88.461,3.63497783]
[1773552361250,7.38959811,88.499,88.454,10.173]
[1773552361646,7.38959811,88.499,88.461,3.64127576]
[1773552366454,7.86370609,88.489,88.43,42.40851185]
[1773552366857,7.86370609,88.489,88.431,3.76347225]
[1773552367555,7.86370609,88.488,88.433,3.76579784]
[1773552368659,7.86370609,88.488,88.44,3.06288074]
[1773552368856,7.86370609,88.488,88.45,3.06288074]
[1773552369965,7.86370609,88.488,88.451,3.77940664]
[1773552374970,7.82269482,88.459,88.404,7.42911798]
[1773552375172,20.332,88.515,88.404,7.42911798]
[1773552375173,7.82269482,88.449,88.404,7.42911798]
[1773552375367,20.332,88.515,88.368,35.58]
[1773552375368,7.82269482,88.437,88.38,3.06288074]
[1773552375661,8.39810621,88.474,88.368,35.58]
[1773552375662,7.82343845,88.429,88.379,7.42911798]
[1773552376366,7.84061319,88.427,88.379,7.42911798]
[1773552377663,3.06288074,88.42,88.379,7.42911798]
[1773552377968,7.86370609,88.419,88.379,7.42911798]
[1773552378663,7.86370609,88.419,88.365,7.42911798]
[1773552383672,3.06288074,88.41,88.365,7.42911798]
[1773552385673,10.45947816,88.41,88.365,7.42911798]
[1773552385874,7.39659742,88.409,88.365,7.42911798]
[1773552387873,7.39659742,88.399,88.352,7.36129738]
[1773552390078,7.39659742,88.396,88.352,7.36129738]
[1773552390270,3.06288074,88.39,88.352,7.36129738]
[1773552390576,3.06288074,88.39,88.328,35.62]
[1773552390577,7.39659742,88.389,88.341,7.36129738]
[1773552391468,7.39659742,88.389,88.342,7.36129738]
[1773552392678,7.39659742,88.389,88.345,7.36129738]
[1773552396177,7.39659742,88.399,88.351,7.36129738]
[1773552397079,3.06288074,88.39,88.338,7.36129738]
[1773552397275,7.39659742,88.379,88.331,7.36129738]
[1773552397475,3.06288074,88.36,88.304,7.36129738]
[1773552397686,7.39659742,88.349,88.304,7.36129738]
[1773552399284,7.39659742,88.349,88.305,7.36129738]
[1773552400585,7.39659742,88.349,88.31,3.06288074]
[1773552401382,7.39659742,88.349,88.311,7.36129738]
[1773552405797,7.39659742,88.349,88.31,3.07411541]
[1773552405995,7.39659742,88.349,88.3,3.07411541]
[1773552406396,7.39659742,88.349,88.3,7.36129738]
[1773552407899,7.39659742,88.349,88.3,10.43541279]
[1773552408302,7.39659742,88.349,88.301,7.36129738]
[1773552411005,7.39659742,88.349,88.303,8.01491488]
[1773552415610,7.39659742,88.349,88.306,7.6561318]
[1773552415809,7.39659742,88.349,88.311,7.6561318]
[1773552416305,7.5133543,88.369,88.321,7.6561318]
[1773552417607,3.07411541,88.37,88.321,7.6561318]
[1773552417608,7.5133543,88.366,88.321,7.6561318]
[1773552419313,7.5133543,88.364,88.321,7.6561318]
[1773552420513,7.5133543,88.375,88.331,7.6561318]
[1773552420707,7.5133543,88.369,88.331,7.6561318]
[1773552420913,7.5133543,88.369,88.32,3.07411541]
[1773552421316,7.5133543,88.369,88.319,7.6561318]
[1773552421614,7.5133543,88.349,88.291,7.6561318]
[1773552421816,7.5133543,88.339,88.291,7.6561318]
[1773552423519,7.5133543,88.339,88.294,7.6561318]
[1773552426306,7.5133543,88.339,88.282,7.6561318]
[1773552427517,7.5133543,88.336,88.282,7.6561318]
[1773552430918,7.5133543,88.329,88.282,7.6561318]
[1773552431115,7.5133543,88.329,88.271,7.6561318]
[1773552431722,7.5133543,88.339,88.281,7.6561318]
[1773552432520,17.7003543,88.333,88.281,7.6561318]
[1773552432722,7.5133543,88.332,88.281,7.6561318]
[1773552432924,7.5133543,88.349,88.291,7.6561318]
[1773552433522,7.5133543,88.349,88.3,10.73024721]
[1773552433722,7.5133543,88.349,88.301,7.6561318]
[1773552433924,7.5133543,88.349,88.31,10.73024721]
[1773552434321,7.5133543,88.349,88.311,7.6561318]
[1773552436321,17.6983543,88.347,88.311,7.6561318]
[1773552439030,17.6983543,88.347,88.32,0.07140601]
[1773552440234,7.5133543,88.347,88.32,0.07140601]
[1773552440731,7.5133543,88.354,88.32,0.07140601]
[1773552441533,10.184,88.353,88.32,0.07140601]
[1773552441723,7.5133543,88.354,88.32,0.07140601]
[1773552441724,7.52254752,88.352,88.32,0.07140601]
[1773552442533,17.70754752,88.349,88.32,0.07140601]
[1773552444837,10.185,88.347,88.32,0.07140601]
[1773552445026,7.52254752,88.346,88.32,0.07140601]
[1773552451137,10.186,88.343,88.32,0.07140601]
[1773552451737,7.52254752,88.342,88.32,0.07140601]
[1773552472247,7.71785468,88.339,88.291,8.00465]
[1773552476249,7.71785468,88.339,88.295,8.00465]
[1773552480653,7.61294145,88.337,88.295,8.00465]
[1773552481757,7.61204226,88.334,88.295,8.00465]
[1773552489758,7.55212202,88.346,88.301,8.00465]
[1773552490555,7.55212202,88.353,88.311,8.00465]
[1773552490861,7.52845065,88.339,88.289,8.00465]
[1773552491054,10.58700902,88.368,88.279,28.75395191]
[1773552491055,3.07459161,88.33,88.279,28.75395191]
[1773552491251,7.52845065,88.319,88.279,8.00465]
[1773552492555,3.07459161,88.31,88.261,8.00465]
[1773552492754,7.59060554,88.309,88.261,8.00465]
[1773552495961,7.59060554,88.309,88.264,8.00465]
[1773552496266,35.62,88.34,88.255,8.00465]
[1773552496267,7.49141293,88.307,88.255,8.00465]
[1773552497466,7.49141293,88.307,88.261,8.00465]
[1773552501269,7.35728237,88.319,88.271,8.00465]
[1773552502674,7.22675137,88.315,88.255,7.84782777]
[1773552502870,7.22675137,88.309,88.255,7.84782777]
[1773552503673,7.22675137,88.305,88.255,7.84782777]
[1773552506070,7.22675137,88.305,88.261,7.84782777]
[1773552509672,7.22675137,88.313,88.27,10.92241938]
[1773552509878,7.22675137,88.313,88.28,3.07459161]
[1773552510276,7.22675137,88.313,88.271,7.84782777]
[1773552510880,7.21973057,88.299,88.251,7.84782777]
[1773552513479,3.07459161,88.31,88.223,7.84782777]
[1773552513680,7.22675137,88.289,88.23,3.07459161]
[1773552513878,7.22675137,88.289,88.24,3.07459161]
[1773552514175,7.22675137,88.289,88.241,7.84782777]
[1773552516583,7.22675137,88.289,88.222,35.62]
[1773552516584,7.22675137,88.301,88.25,3.07459161]
[1773552516784,7.22675137,88.301,88.251,7.84782777]
[1773552517881,7.13159465,88.299,88.251,7.84782777]
[1773552519677,7.13159465,88.299,88.26,3.07459161]
[1773552521086,7.13159465,88.299,88.261,7.84782777]
[1773552527385,7.02993224,88.297,88.246,10.197]
[1773552527686,7.02993224,88.297,88.251,7.84782777]
[1773552530388,7.0179076,88.296,88.251,7.84782777]
[1773552534195,6.95786111,88.307,88.261,7.82604183]
[1773552534597,6.95786111,88.329,88.271,7.82604183]
[1773552534995,6.95786111,88.329,88.281,7.82604183]
[1773552535295,6.95786111,88.329,88.29,3.07834883]
[1773552535696,6.95786111,88.329,88.29,10.90439066]
[1773552535893,6.95786111,88.329,88.291,7.82604183]
[1773552536098,6.92905385,88.349,88.291,7.82604183]
[1773552537500,10.186,88.338,88.291,7.82604183]
[1773552540201,6.97929178,88.332,88.291,7.82604183]
[1773552540797,6.97497101,88.329,88.279,7.82604183]
[1773552541002,6.97497101,88.318,88.27,3.07834883]
[1773552541702,6.97497101,88.318,88.27,10.90439066]
[1773552542591,6.98208599,88.315,88.27,10.90439066]
[1773552543102,6.98208599,88.315,88.271,7.82604183]
[1773552543902,6.98208599,88.315,88.273,7.82604183]
[1773552546102,6.98208599,88.315,88.28,3.07834883]
[1773552546301,6.98208599,88.315,88.281,7.82604183]
[1773552548204,10.188,88.326,88.281,7.82604183]
[1773552548404,10.188,88.326,88.291,7.82604183]
[1773552550908,17.13417609,88.336,88.291,7.82604183]
[1773552555210,6.96842937,88.335,88.291,7.82604183]
[1773552557407,6.90239239,88.331,88.291,7.82604183]
[1773552566120,10.188,88.326,88.291,7.82604183]
[1773552567121,6.38108134,88.321,88.272,7.1041753]
[1773552567714,6.32098418,88.319,88.272,7.1041753]
[1773552568114,6.32098418,88.319,88.273,10.194]
[1773552568614,6.32098418,88.316,88.273,10.194]
[1773552568819,6.32098418,88.316,88.273,17.2981753]
[1773552571310,6.32098418,88.316,88.274,7.1041753]
[1773552587330,6.32098418,88.316,88.276,7.1041753]
[1773552588227,6.32098418,88.316,88.278,7.1041753]
[1773552589233,0.56541635,88.319,88.283,7.1041753]
[1773552591833,0.56541635,88.319,88.285,6.4885004]
[1773552592132,0.56541635,88.319,88.291,6.4885004]
[1773552600848,4.62784497,88.318,88.276,10.193]
[1773552601044,4.62784497,88.318,88.277,6.4885004]
[1773552602650,4.62784497,88.318,88.261,6.4885004]
[1773552603451,4.62784497,88.318,88.272,6.4885004]
[1773552605248,4.49315681,88.317,88.272,6.4885004]
[1773552606651,4.47494344,88.315,88.272,6.4885004]
[1773552607651,4.4714142,88.313,88.272,6.4885004]
[1773552612652,4.08835956,88.308,88.272,6.4885004]
[1773552615854,10.19,88.307,88.272,6.4885004]
[1773552616455,14.17875344,88.307,88.272,6.4885004]
[1773552618055,3.98875344,88.307,88.272,6.4885004]
[1773552618251,10.189,88.315,88.272,6.4885004]
[1773552619154,14.13040737,88.315,88.272,6.4885004]
[1773552619354,3.94140737,88.315,88.272,6.4885004]
[1773552619555,0.56541635,88.319,88.272,6.4885004]
[1773552619853,0.56541635,88.319,88.281,6.4885004]
[1773552632073,4.17900468,88.319,88.281,6.4885004]
[1773552632570,10.189,88.318,88.281,6.4885004]
[1773552632776,3.61142146,88.317,88.281,6.4885004]
[1773552639178,0.56541635,88.319,88.281,6.4885004]
[1773552639585,3.46381468,88.318,88.281,6.4885004]
[1773552645585,0.56541635,88.319,88.281,6.4885004]
[1773552646292,3.91412317,88.319,88.281,6.4885004]
[1773552657604,0.56541635,88.319,88.281,6.4885004]
[1773552659209,0.56541635,88.319,88.291,6.35776525]
[1773552660110,13.2508162,88.338,88.291,6.35776525]
[1773552660306,13.80152166,88.348,88.301,6.35776525]
[1773552660606,3.61652166,88.348,88.311,6.35776525]
[1773552664719,3.55874013,88.339,88.298,6.35776525]
[1773552670422,10.185,88.348,88.301,6.35776525]
[1773552670723,13.36290878,88.348,88.301,6.35776525]
[1773552672325,3.13481856,88.347,88.301,6.35776525]
[1773552672721,3.14116785,88.345,88.301,6.35776525]
[1773552673627,3.14086053,88.342,88.301,6.35776525]
[1773552677529,3.07659076,88.35,88.301,6.35776525]
[1773552678031,3.11293081,88.349,88.301,6.35776525]
[1773552680032,3.07659076,88.35,88.301,6.35776525]
[1773552680235,35.62,88.352,88.301,6.35776525]
[1773552681426,3.13445521,88.351,88.301,6.35776525]
[1773552681633,3.19723283,88.349,88.301,6.35776525]
[1773552689338,3.1073134,88.339,88.301,6.35776525]
[1773552691639,3.08635246,88.336,88.301,6.35776525]
[1773552695941,13.20913991,88.333,88.301,6.35776525]
[1773552696142,3.02213991,88.332,88.301,6.35776525]
[1773552697044,3.0123886,88.329,88.283,5.71408502]
[1773552697243,3.0123886,88.319,88.283,5.71408502]
[1773552702243,10.188,88.323,88.283,5.71408502]
[1773552705344,13.03514103,88.323,88.283,5.71408502]
[1773552710448,2.80451207,88.322,88.283,5.71408502]
[1773552717457,35.64,88.328,88.291,5.73651753]
[1773552717752,2.71831646,88.327,88.291,5.73651753]
[1773552720759,2.67943666,88.325,88.274,5.73651753]
[1773552720960,2.67943666,88.319,88.273,35.64]
[1773552721153,3.07637361,88.32,88.26,5.73651753]
[1773552721154,12.87043666,88.299,88.26,5.73651753]
[1773552721359,2.67943666,88.298,88.26,5.73651753]
[1773552721560,3.07637361,88.29,88.25,5.73651753]
[1773552721756,2.69864413,88.286,88.25,5.73651753]
[1773552723455,10.192,88.284,88.25,5.73651753]
[1773552723754,2.57276463,88.283,88.231,5.73651753]
[1773552731860,10.193,88.282,88.231,5.73651753]
[1773552732163,2.46543124,88.279,88.231,5.73651753]
[1773552733268,2.45913654,88.277,88.231,5.73651753]
[1773552733665,2.450922,88.269,88.231,5.73651753]
[1773552734370,2.44521414,88.266,88.231,5.73651753]
[1773552734565,2.44521414,88.266,88.225,35.64]
[1773552734769,2.44521414,88.266,88.226,5.73651753]
[1773552735070,10.194,88.267,88.226,5.73651753]
[1773552735759,5.57650115,88.28,88.226,5.73651753]
[1773552735960,2.50012754,88.28,88.231,5.73651753]
[1773552736361,2.50012754,88.279,88.231,5.73651753]
[1773552736971,2.50054875,88.277,88.231,5.73651753]
[1773552738867,2.52436479,88.288,88.241,5.73651753]
[1773552739060,35.64,88.297,88.261,5.73651753]
[1773552739262,2.52436479,88.323,88.281,5.73651753]
[1773552739466,10.187,88.334,88.291,5.73651753]
[1773552739667,10.187,88.334,88.3,3.07637361]
[1773552740365,10.187,88.334,88.3,8.81289114]
[1773552740565,10.187,88.334,88.301,5.73651753]
[1773552744771,2.48386769,88.349,88.301,5.73651753]
[1773552744976,2.48386769,88.349,88.311,5.73087304]
[1773552749577,2.50256708,88.361,88.311,5.73087304]
[1773552749974,2.49700981,88.349,88.291,5.73087304]
[1773552750673,2.49700981,88.349,88.301,5.73087304]
[1773552751683,10.185,88.345,88.301,5.73087304]
[1773552753280,2.50013253,88.342,88.277,5.73087304]
[1773552753486,2.50013253,88.342,88.291,5.73087304]
[1773552753681,2.49592671,88.329,88.279,5.73087304]
[1773552754181,2.49592671,88.328,88.279,5.73087304]
[1773552755783,2.51546498,88.324,88.279,5.73087304]
[1773552757588,10.188,88.323,88.279,5.73087304]
[1773552760691,3.07637361,88.33,88.281,5.73087304]
[1773552760893,10.187,88.332,88.281,5.73087304]
[1773552761791,2.58404319,88.335,88.291,5.73087304]
[1773552763991,2.56304266,88.333,88.291,5.73087304]
[1773552765584,10.187,88.329,88.291,5.73087304]
[1773552769398,3.07637361,88.35,88.291,5.73087304]
[1773552769399,2.58343563,88.349,88.291,5.73087304]
[1773552770599,10.186,88.342,88.293,5.45082808]
[1773552771394,10.184,88.353,88.301,5.45082808]
[1773552773196,2.52495202,88.352,88.301,5.45082808]
[1773552773495,12.70995202,88.351,88.301,5.45082808]
[1773552773697,5.59591839,88.35,88.294,5.82904535]
[1773552773901,2.52123747,88.349,88.294,5.82904535]
[1773552775296,10.185,88.348,88.297,5.82904535]
[1773552776499,10.185,88.348,88.301,5.82904535]
[1773552776700,10.184,88.356,88.301,5.82904535]
[1773552776902,10.184,88.356,88.304,5.82904535]
[1773552777500,10.185,88.352,88.304,5.82904535]
[1773552780593,2.52421629,88.355,88.267,20.74930191]
[1773552780594,10.184,88.361,88.311,5.82904535]
[1773552780793,2.51187608,88.36,88.311,5.82904535]
[1773552781503,2.51187608,88.36,88.312,5.82904535]
[1773552783905,5.586557,88.36,88.312,5.82904535]
[1773552785199,2.50160693,88.359,88.312,5.82904535]
[1773552785705,10.184,88.361,88.312,5.82904535]
[1773552787303,10.184,88.361,88.314,5.82904535]
[1773552788004,41.2132127,88.37,88.31,3.07468092]
[1773552788005,2.45862025,88.369,88.316,5.82904535]
[1773552789605,10.183,88.365,88.316,5.82904535]
[1773552789804,12.63519828,88.365,88.316,5.82904535]
[1773552790608,12.63537014,88.362,88.316,5.82904535]
[1773552791007,2.44946323,88.361,88.316,5.82904535]
[1773552791401,10.184,88.357,88.316,5.82904535]
[1773552791606,2.44946323,88.356,88.316,5.82904535]
[1773552792508,10.184,88.354,88.316,5.82904535]
[1773552797110,2.44946323,88.356,88.316,5.82904535]
[1773552798611,2.44946323,88.356,88.319,5.82904535]
[1773552806812,35.64,88.364,88.321,5.37083698]
[1773552807613,35.64,88.364,88.323,5.37083698]
[1773552809221,35.64,88.364,88.326,5.37083698]
[1773552809717,35.64,88.364,88.328,10.187]
[1773552809920,35.64,88.364,88.329,5.37083698]
[1773552813116,10.53452602,88.403,88.302,20.74930191]
[1773552813117,2.35218315,88.39,88.341,5.37083698]
[1773552813316,2.35218315,88.39,88.351,5.37083698]
[1773552814617,2.35218315,88.39,88.352,5.37083698]
[1773552814922,2.35002425,88.4,88.361,5.37083698]
[1773552815522,2.35002425,88.416,88.371,5.37083698]
[1773552815719,20.338,88.487,88.36,5.37083698]
[1773552815720,2.35621337,88.409,88.36,5.37083698]
[1773552817518,2.35621337,88.409,88.362,10.183]
[1773552818618,2.35621337,88.409,88.362,15.55383698]
[1773552818818,2.35621337,88.409,88.363,5.37083698]
[1773552819118,2.35621337,88.409,88.367,10.183]
[1773552819318,2.35621337,88.409,88.368,5.37083698]
[1773552819514,2.35621337,88.409,88.371,5.37083698]
[1773552819717,2.21207895,88.424,88.371,5.37083698]
[1773552820521,2.21207895,88.424,88.375,5.37083698]
[1773552821720,2.21207895,88.424,88.377,5.37083698]
[1773552823527,2.21207895,88.424,88.379,5.37083698]
[1773552824226,2.21207895,88.424,88.381,5.37083698]
[1773552824828,2.19741241,88.409,88.36,8.4455179]
[1773552825024,2.19741241,88.409,88.36,5.37083698]
[1773552827022,2.19741241,88.409,88.361,5.37083698]
[1773552827228,2.19741241,88.409,88.371,5.37083698]
[1773552828526,2.19139436,88.421,88.381,5.37083698]
[1773552830026,2.06622161,88.447,88.401,5.37083698]
[1773552831326,2.06622161,88.447,88.403,10.179]
[1773552831530,2.06622161,88.447,88.401,5.37083698]
[1773552831531,2.05552046,88.459,88.411,5.73118596]
[1773552831926,2.05552046,88.459,88.413,5.73118596]
[1773552835629,2.10826075,88.453,88.401,5.73118596]
[1773552835936,3.06711024,88.46,88.401,5.73118596]
[1773552835937,2.10826075,88.449,88.401,5.73118596]
[1773552836428,35.62,88.462,88.356,33.98]
[1773552836429,2.10660385,88.459,88.411,5.73118596]
[1773552838234,2.10660385,88.459,88.414,5.73118596]
[1773552841529,35.62,88.462,88.421,5.73118596]
[1773552842333,35.62,88.462,88.424,5.73118596]
[1773552842531,35.62,88.462,88.431,5.73118596]
[1773552842834,35.62,88.488,88.441,5.73118596]
[1773552843029,2.07477981,88.496,88.441,5.73118596]
[1773552843533,2.07477981,88.469,88.429,5.73118596]
[1773552846537,10.171,88.468,88.429,5.73118596]
[1773552846732,12.23923095,88.468,88.429,5.73118596]
[1773552847732,2.11692751,88.467,88.429,5.73118596]
[1773552848831,2.11379796,88.464,88.429,5.73118596]
[1773552849033,2.11379796,88.464,88.42,5.73118596]
[1773552849541,2.11379796,88.445,88.391,5.73118596]
[1773552849933,2.11282623,88.429,88.373,5.73118596]
[1773552850232,10.178,88.412,88.373,5.73118596]
[1773552850640,2.11282623,88.429,88.373,5.73118596]
[1773552851038,2.12910405,88.419,88.373,5.73118596]
[1773552851340,35.6,88.443,88.373,5.73118596]
[1773552851341,5.19621429,88.41,88.373,5.73118596]
[1773552853231,2.12910405,88.41,88.373,5.73118596]
[1773552855742,2.06848324,88.422,88.373,5.73118596]
[1773552857039,10.177,88.419,88.373,5.73118596]